Cogmind - Beta 17.1 @@@ ROGUE MODE // 2026.09.02 @ 00:29:43 Player: H3-MLN Result: Destroyed by Executioner with Helical Railgun Performance ------------- Evolutions (9) 4500 Regions Visited (21) 4200 Robots Destroyed (509) 2545 Value Destroyed (25623) 25623 Prototype IDs (84) 1680 Alien Tech Used (0) 0 Bonus (42746) 42746 TOTAL SCORE: 81294 Bonus ------- Triggered High Security 1500 High Alert Combat Kills 18364 Follower Combat Kills 4707 Prayed to X0-1V1 5000 Major X0-1V1 Interference 8750 Subatomizer Sterilization 3000 Entered Garrisons 200 Entered DSFs 1500 Aligned with FarCom 300 Scanned by Researcher 500 Friendly Fire -1075 Cogmind --------- Core Integrity 0/1750 Matter 688/800 Energy 100/100 System Corruption 44% Temperature Cool (0) Movement Core (50) Location -1/Command Parts ------- > --- POWER (2) -------- (None) > --- PROPULSION (8) --- (None) > --- UTILITY (9) ------ Graphene Brace > --- WEAPON (7) ------- (None) > --- INVENTORY (5) ---- Matter Compressor (250) Experimental Kinecellerator Advanced Point Defense System Peak State ------------ > --- POWER ------------ Quantum Reactor Light Quantum Reactor > --- PROPULSION ------- Heavy Shield Leg Heavy Shield Leg Experimental Armored Exoskeleton > --- UTILITY ---------- Advanced Heat Sink Advanced Coolant Injector Huge Storage Unit Wyrmplate Plateshifter > --- WEAPON ----------- Linear Accelerator Enhanced Hardcell Cannon Enhanced Hardcell Cannon Enhanced Hardcell Cannon Enhanced Hardcell Cannon Enhanced Hardcell Cannon Gamma Bomb Array > --- INVENTORY -------- Antimatter Reactor Light Quantum Reactor Improved Quantum Reactor Heavy Shield Leg Heavy Shield Leg Heavy Shield Leg High-density Centrium Leg Matter Compressor Matter Compressor Core Analyzer Experimental Kinecellerator Experimental Weapon Cycler Experimental Phase Shifter Graphene Brace Experimental EM Shield Advanced Point Defense System High-powered Tractor Beam Enhanced Hardcell Cannon Containment Facilitator [Rating: 256] Favorites ----------- Power Improved Deuterium Engine Engine Improved Deuterium Engine Power Core Reinforced Fission Core Reactor Vortex Chain Reactor Propulsion Light Armored Exoskeleton Treads Armored Medium Treads Leg Light Armored Exoskeleton Wheel Wheel Utility High-capacity Storage Unit Device Plateshifter Storage High-capacity Storage Unit Processor Core Analyzer Hackware Hacking Suite Protection Hardened Heavy Armor Plating Weapon Enhanced Hardcell Cannon Energy Cannon Enhanced Nova Cannon Ballistic Cannon Enhanced Hardcell Cannon Launcher Gamma Bomb Array Special Weapon CPS Tube Slashing Weapon Heavy Scimitar of Distortion Special Melee Weapon Datajack Build | -11 -10 -9 -9 -9 -8 -8 -8 -8 -8 -6 -6 -6 -6 -5 -4 -4 -3 -2 -2 -1 -1 ------- Run | Yrd Mat Mat Min Exi Min Mat Sto Rec Scr Fac Gar Fac DSF Fac Fac DSF Res Res DSF Acc Com Slots Evolved 18 | . . 2 . . . 2 . . . 4 . . . 2 2 . 2 2 . 2 . Power 1 | . . . . . . . . . . . . . . . 1 . . . . . . Propulsion 6 | . . 1 . . . 1 . . . 2 . . . 1 . . . . . 1 . Utility 7 | . . 1 . . . 1 . . . 1 . . . . 1 . . 2 . 1 . Weapon 4 | . . . . . . . . . . 1 . . . 1 . . 2 . . . . Parts Attached 159 | 4 6 9 2 1 . 5 5 3 7 6 1 . 8 8 2 7 20 1 22 28 14 Power 18 | 1 . 2 1 . . . . . 1 . . . . 1 . . 3 . 1 3 5 Engine 5 | 1 . 2 1 . . . . . 1 . . . . . . . . . . . . Core 1 | . . . . . . . . . . . . . . 1 . . . . . . . Reactor 12 | . . . . . . . . . . . . . . . . . 3 . 1 3 5 Propulsion 51 | 2 . 2 . . . 2 . . 2 2 . . 3 2 . 4 6 . 11 12 3 Treads 20 | 2 . 1 . . . . . . . 2 . . 3 2 . 4 5 . . . 1 Leg 30 | . . . . . . 2 . . 2 . . . . . . . 1 . 11 12 2 Wheel 1 | . . 1 . . . . . . . . . . . . . . . . . . . Hover . | . . . . . . . . . . . . . . . . . . . . . . Flight . | . . . . . . . . . . . . . . . . . . . . . . Utility 51 | 1 3 4 1 . . 2 3 2 1 2 1 . 4 3 2 . 8 1 4 6 3 Device 31 | . . 1 . . . . 1 2 1 2 1 . . 2 2 . 6 1 4 6 2 Storage 4 | 1 1 1 . . . . . . . . . . 1 . . . . . . . . Processor 5 | . 1 1 . . . . . . . . . . 2 . . . 1 . . . . Hackware 1 | . . . . . . . 1 . . . . . . . . . . . . . . Protection 10 | . 1 1 1 . . 2 1 . . . . . 1 1 . . 1 . . . 1 Artifact . | . . . . . . . . . . . . . . . . . . . . . . Weapon 39 | . 3 1 . 1 . 1 2 1 3 2 . . 1 2 . 3 3 . 6 7 3 Energy Gun . | . . . . . . . . . . . . . . . . . . . . . . Energy Cannon 1 | . . . . . . . . . . . . . . . . . . . . 1 . Ballistic Gun . | . . . . . . . . . . . . . . . . . . . . . . Ballistic Cannon 28 | . 2 1 . . . 1 . 1 2 1 . . . 2 . 2 3 . 6 4 3 Launcher 4 | . 1 . . . . . 1 . . . . . . . . . . . . 2 . Special Weapon 4 | . . . . . . . . . 1 1 . . 1 . . 1 . . . . . Impact Weapon . | . . . . . . . . . . . . . . . . . . . . . . Slashing Weapon . | . . . . . . . . . . . . . . . . . . . . . . Piercing Weapon . | . . . . . . . . . . . . . . . . . . . . . . Special Melee Weapon 2 | . . . . 1 . . 1 . . . . . . . . . . . . . . Unidentified Prototypes 11 | . . 1 . . . . 1 . . . . . . . . . 2 . . 6 1 Corrupted Parts 3 | . . . . 1 . . . . . . . . . . . . . . . . 2 System Corruption 23 | . . . . 8 . . . . . . . . . . . . . . . . 15 Parts Lost 52 | . . 2 1 . . 1 1 . 1 . . . 1 2 . . 13 . 2 6 22 Power 5 | . . . . . . . . . . . . . . . . . . . . . 5 Propulsion 19 | . . 1 . . . . . . . . . . 1 1 . . 8 . . 1 7 Utility 11 | . . . . . . 1 . . 1 . . . . 1 . . 2 . . 2 4 Weapon 17 | . . 1 1 . . . 1 . . . . . . . . . 3 . 2 3 6 Highest Loss Streak 9 | . . 2 1 . . 1 1 . 1 . . . 1 1 . . 9 . 2 2 5 To Critical Strikes . | . . . . . . . . . . . . . . . . . . . . . . Average Backups 16 | . 6 15 16 18 17 16 16 16 16 16 18 18 17 20 20 19 16 16 17 21 16 Power . | . 1 2 2 2 2 2 . . . . . . . . . . 1 2 1 1 1 Propulsion 2 | . . . 1 3 3 3 4 2 2 1 2 2 2 2 2 . 1 1 5 2 2 Utility 10 | . 3 10 11 12 12 11 11 12 10 8 9 9 9 12 13 12 10 9 8 12 9 Weapon 1 | . . . . . . . . 1 1 3 4 4 2 2 3 4 3 3 2 4 1 Tool/Special . | . . . . . . . . . . . . . . . . . . . . . . Unused Backups 63 | . . 7 2 . . 4 6 2 6 3 . . . . . 5 6 . 7 8 7 Power 7 | . . . . . . . 4 . . . . . . . . . 1 . . . 2 Propulsion 16 | . . . 1 . . 4 . 2 . . . . . . . . . . 3 5 1 Utility 34 | . . 6 1 . . . 1 . 6 3 . . . . . 5 5 . . 3 4 Weapon 4 | . . . . . . . 1 . . . . . . . . . . . 3 . . Tool/Special 2 | . . 1 . . . . . . . . . . . . . . . . 1 . . Average Slot Usage (%) 73 | . 89 99 79 76 79 71 71 72 72 52 52 53 58 73 81 86 78 18 56 75 57 Engine 6 | . 14 11 11 11 11 9 9 9 9 6 6 6 6 3 5 5 . . . . . Reactor 1 | . . . . . . . . . . . . . . . . . 3 . 4 5 7 Treads 11 | . 28 31 22 22 22 . . . . 12 13 13 18 28 26 33 29 . . . . Leg 10 | . . . . . . 17 18 18 18 . . . . 1 5 1 . 4 26 25 11 Device 6 | . . 10 . . . . 1 9 9 12 12 13 6 5 7 10 6 5 9 11 11 Storage 7 | . 14 11 11 11 11 9 9 9 9 6 6 6 6 5 5 5 4 4 4 3 3 Processor 1 | . 6 2 . . . . . . . . . . 5 5 5 5 6 . . . . Protection 7 | . 5 8 11 11 11 17 9 9 9 6 6 6 6 5 5 5 3 4 4 3 3 Ballistic Cannon 14 | . 20 22 12 . 2 9 10 9 16 6 6 6 5 11 15 14 19 . 7 21 17 Launcher 1 | . . . . . . . 6 . . . . . . . . . . . . 2 2 Special Melee Weapon 1 | . . . . 10 11 8 1 8 . . . . . . . . . . . . . Peak Build Rating 256 | 4 9 28 28 21 23 41 46 50 49 83 91 91 95 88 91 104 165 130 215 246 256 Average Rating 95 | 3 6 23 19 20 21 40 43 46 44 81 84 91 78 82 87 96 134 121 180 233 231 On Entrance 72 | . 4 9 28 20 21 23 40 43 41 49 83 91 91 79 78 91 104 117 130 204 244 Avg Prop Armor Cover (%) 10 | . . 14 10 11 10 10 . . . . . . . 4 4 4 8 . . . 20 Naked Turns . | . . . . . . . . . . . . . . . . . . . . . . Heaviest Build 277 | 10 34 58 69 66 70 77 86 81 94 96 96 94 133 146 162 165 189 152 260 277 266 Greatest Support 236 | 40 40 60 10 10 10 60 60 60 60 104 104 104 112 140 115 183 193 100 196 236 220 Greatest Overweight (x) 11 | 1 . 5 6 6 6 6 1 1 1 . . . 2 1 1 1 1 1 2 1 11 Average Overweight (x) 1 | . . . 5 6 6 1 1 1 1 . . . . . 1 . . 1 . 1 . Largest Inventory Capacity 25 | 8 15 20 20 20 20 20 20 20 20 20 20 20 25 25 25 25 25 25 25 25 25 Average Capacity 21 | 6 14 19 20 20 20 20 20 20 20 20 20 20 23 25 25 25 25 25 25 25 22 Most Carried 25 | 2 13 20 20 20 20 20 20 20 20 20 20 20 24 25 25 25 25 22 25 25 25 Average Carried 20 | . 6 16 18 19 19 19 19 19 19 18 20 20 21 24 24 24 23 22 22 24 18 Final Capacity 25 | 8 15 20 20 20 20 20 20 20 20 20 20 20 25 25 25 25 25 25 25 25 5 Final Carried 25 | 1 13 17 20 20 19 20 20 19 20 20 20 20 24 25 25 25 22 22 23 25 3 Class Distribution -------------------- 55% | Mutant 19% | Scavenger-Executioner 11% | Scavenger-Tank 6% | Executioner 3% | Scavenger-Gunner Dominant Class ---------------- Mutant | -10/Materials Mutant | -9/Materials Mutant | -9/Mines Mutant | -9/Exiles Mutant | -8/Mines Mutant | -8/Materials Mutant | -8/Storage Mutant | -8/Recycling Mutant | -8/Scraptown Scavenger-Tank | -6/Factory Scavenger-Tank | -6/Garrison Scavenger-Tank | -6/Factory Scavenger-Tank | -6/DSF Scavenger-Tank | -5/Factory Scavenger-Gunner | -4/Factory Scavenger-Gunner | -4/DSF Scavenger-Executioner | -3/Research Mutant | -2/Research Mutant | -2/DSF Scavenger-Executioner | -1/Access Scavenger-Executioner | -1/Command Resources | -11 -10 -9 -9 -9 -8 -8 -8 -8 -8 -6 -6 -6 -6 -5 -4 -4 -3 -2 -2 -1 -1 ----------- Run | Yrd Mat Mat Min Exi Min Mat Sto Rec Scr Fac Gar Fac DSF Fac Fac DSF Res Res DSF Acc Com Matter Collected 25081 | 228 688 682 1219 . 19 437 1062 165 1211 755 210 . 263 1170 . 560 2762 . 1365 7165 5120 Remotely 8889 | . . . . . . . . . . . . . . . . . 962 . 660 3760 3507 Salvage Created 27071 | . 583 603 172 . . 202 1299 149 40 450 41 . 84 653 . 265 2100 . 398 11018 9014 Parts 1087 | . 35 43 13 . . 18 67 12 2 19 2 . 14 50 . 7 72 . 9 391 333 Haulers Intercepted 17 | . 2 2 . . . 2 2 . . . . . . 1 . . 3 . . 5 . Recyclers Shooed 17 | . . . 1 . . . 3 1 . . . . . 3 . . 3 . . 4 2 Parts Field Recycled . | . . . . . . . . . . . . . . . . . . . . . . Retrieved Matter . | . . . . . . . . . . . . . . . . . . . . . . Parts Self-Destructed . | . . . . . . . . . . . . . . . . . . . . . . Prevented . | . . . . . . . . . . . . . . . . . . . . . . Parts Restored . | . . . . . . . . . . . . . . . . . . . . . . Kills | -11 -10 -9 -9 -9 -8 -8 -8 -8 -8 -6 -6 -6 -6 -5 -4 -4 -3 -2 -2 -1 -1 ------- Run | Yrd Mat Mat Min Exi Min Mat Sto Rec Scr Fac Gar Fac DSF Fac Fac DSF Res Res DSF Acc Com Combat Hostiles Destroyed 384 | . 14 15 12 . . 6 25 2 1 5 3 . 5 11 . 5 38 . 9 111 122 Melee 1 | . . . . . . . . . . . 1 . . . . . . . . . . Cannons 226 | . 8 15 12 . . 6 19 2 1 5 2 . 5 10 . 5 38 . 9 51 38 AOE 67 | . 6 . . . . . 5 . . . . . . 1 . . . . . 18 37 Classes Destroyed 25 | . 6 3 1 . . 1 . 1 1 1 . . 2 1 . . 4 . . 4 . Worker 43 | . . 3 2 . . . 2 . . 2 . . . 1 . . 11 . . 15 7 Builder 7 | . . . . . . 1 . . . . . . . 3 . . 1 . . 2 . Tunneler 4 | . . . . . . . . . . 2 . . . . . . . . . 2 . Hauler 17 | . 2 2 . . . 2 2 . . . . . . 1 . . 3 . . 5 . Recycler 27 | . 2 2 . . . 1 3 1 . 2 . . . . . . 3 . . 11 2 Mechanic 6 | . . . . . . . . . . . . . . . . . . . . 3 3 Operator 9 | . 1 2 . . . . 1 . . . . . . 2 . . 1 . . 1 1 Watcher 14 | . 1 3 . . . . 1 . . . . . . 1 . . . . . 8 . Swarmer 57 | . 6 3 3 . . 3 3 . . 1 2 . . 1 . . 9 . 2 10 14 Saboteur 11 | . . . . . . . . . . . . . . . . . 1 . . 3 7 Grunt 142 | . 8 8 2 . . 1 11 . . 1 1 . 3 3 . 4 6 . 4 40 50 Brawler 21 | . . . . . . . . . . . . . . . . . 3 . . 9 9 Duelist 26 | . . 2 . . . 1 . . . 1 . . . . . . . . . 9 13 Protector 10 | . . . . . . . . . . . . . . . . . 1 . . 4 5 Sentry 33 | . . 2 . . . 1 11 1 . 2 . . . . . . 4 . . 7 5 Specialist 7 | . . . . . . . . . . . . . 1 3 . 1 . . 2 . . Hunter 29 | . . . . . . . . . . . . . . 1 . . 6 . 1 16 5 Programmer 25 | . . . . . . . . 1 . 1 . . . 2 . . 5 . . 7 9 Heavy 5 | . . . . . . . . . . . . . 1 1 . . 2 . 1 . . Behemoth 1 | . . . . . . . . . . . . . . . . . 1 . . . . Investigator 3 | . . . . . . . . . . . . . . . . . . . . 2 1 Striker 7 | . . . . . . . . . . . . . . . . . . . . 4 3 Executioner 4 | . . . . . . . . . . . . . . . . . . . . 2 2 Explorer 1 | . . . . . . . . . 1 . . . . . . . . . . . . Assembled 7 | . . . 7 . . . . . . . . . . . . . . . . . . Best Kill Streak 32 | . 3 5 3 . . 2 5 1 1 2 1 . 3 5 . 2 11 . 5 28 32 Combat Bots Only 29 | . 3 4 3 . . 2 3 1 1 2 1 . 3 4 . 2 8 . 5 23 29 Max Kills in Single Turn 4 | . 3 1 1 . . 1 2 1 1 2 1 . 1 2 . 1 3 . 1 4 4 Gunslinging . | . . . . . . . . . . . . . . . . . . . . . . Exploded 4 | . 3 . . . . . 2 . . . . . . 1 . . . . . 3 4 Melee 1 | . . . . . . . . . . . 1 . . . . . . . . . . Uniques/NPCs Destroyed 1 | . . . . . . . . . 1 . . . . . . . . . . . . Triborg (-8/Scraptown) Combat | -11 -10 -9 -9 -9 -8 -8 -8 -8 -8 -6 -6 -6 -6 -5 -4 -4 -3 -2 -2 -1 -1 -------- Run | Yrd Mat Mat Min Exi Min Mat Sto Rec Scr Fac Gar Fac DSF Fac Fac DSF Res Res DSF Acc Com Hostile Shots Fired 3401 | . 37 77 38 . 16 63 80 8 6 7 7 . 16 91 . 37 763 . 332 654 1169 Missed 1035 | . 12 21 10 . 3 13 21 3 1 2 2 . 4 23 . 14 232 . 106 211 357 Deflected 33 | . . . . . . . . . . . . . . . . . . . . . 33 Hits 2366 | . 25 56 28 . 13 50 59 5 5 5 5 . 12 68 . 23 531 . 226 443 812 Melee 185 | . . 2 . . . 2 . . . . . . . . . . 64 . 5 11 101 Projectile 2181 | . 25 54 28 . 13 48 59 5 5 5 5 . 12 68 . 23 467 . 221 432 711 AOE 3 | . . . . . . . . . . . . . . . . . . . . 2 1 Critical Strikes 140 | . 1 1 . . . 3 5 . . . . . 4 2 . 1 40 . 10 20 53 Actively Blocked 56 | . . . . . . . . . . . . . . . . . 28 . 6 . 22 Part Disruptions 6 | . . . . . . . . . . . . . . . . . . . . 2 4 Damage Taken 49596 | . 273 656 298 . 102 646 1187 73 417 73 103 . 525 1318 . 488 12934 . 5215 7062 18226 Core 3718 | . 64 116 25 . . 96 158 14 . 12 31 . . 25 . . 1057 . 310 243 1567 Absorbed by Shields 5580 | . . . . . . 69 . . 30 . . . . . . . . . . 2309 3172 Reduced by Siege Mode 352 | . . . . . . . . . . 15 23 . 162 152 . . . . . . . Ignored by Resistances 2844 | . . . . . . . . . . . . . . . . . . . 6 1034 1804 Regen/Repaired (Parts) 19988 | . 34 . . . . . 244 . . . . . . . . . 4830 37 2836 4288 7719 Core Remaining (%) 79 | 100 74 . . . 43 . . . 96 . . . 95 97 . 100 27 . 80 . . Volleys Fired 942 | . 43 60 38 . 2 55 120 15 13 17 13 . 17 35 . 14 88 . 37 217 158 Largest 7 | . 2 2 2 . 1 1 2 2 2 1 1 . 1 3 . 3 5 . 6 7 6 Hottest 394 | . 60 63 63 . 33 33 66 70 77 65 65 . 65 134 . 137 247 . 329 394 348 Shots Fired 2094 | . 58 120 45 . 3 55 140 16 24 17 13 . 17 78 . 40 326 . 96 639 407 Gun . | . . . . . . . . . . . . . . . . . . . . . . Cannon 1929 | . 55 120 45 . 3 55 124 16 22 16 13 . 16 76 . 39 324 . 96 569 340 Launcher 156 | . 3 . . . . . 16 . . . . . . . . . . . . 70 67 Special 9 | . . . . . . . . . 2 1 . . 1 2 . 1 2 . . . . Kinetic 1928 | . 55 120 45 . 3 55 124 16 22 16 13 . 16 76 . 39 324 . 96 568 340 Thermal 1 | . . . . . . . . . . . . . . . . . . . . 1 . Explosive 3 | . 3 . . . . . . . . . . . . . . . . . . . . Electromagnetic 152 | . . . . . . . 16 . . . . . . . . . . . . 70 66 Robot Hit Streak 24 | . 13 12 11 . 2 9 14 10 12 13 3 . 8 24 . 16 20 . 15 14 21 Robot Miss Streak 13 | . 5 4 4 . 1 4 3 2 1 1 . . 1 8 . 3 13 . 8 12 7 Penetration Max 2 | . . . . . . . . . . 1 . . 1 1 . . 1 . . 2 . Secondary Targets . | . . . . . . . . . . . . . . . . . . . . . . Shots Hit Robots 1113 | . 32 80 25 4 4 38 76 10 21 11 3 . 15 50 . 27 211 . 46 253 207 Core Hits 1355 | . 22 29 15 . . 13 44 3 4 7 2 . 4 35 . 13 223 . 18 428 495 Critical Kills 60 | . . . . . . . . . . . . . . . . . . . 1 57 2 Critical Parts Destroyed 93 | . . . . . . . . . . . . . . . . . . . . 93 . Critical Strikes 219 | . 1 3 . . 1 2 5 . 1 3 . . 1 2 . 1 17 . 5 153 24 Destroy 154 | . . . . . . . . . . . . . . . . . . . 1 151 2 Blast 65 | . 1 3 . . 1 2 5 . 1 3 . . 1 2 . 1 17 . 4 2 22 Melee Attacks 9 | . . . . 4 3 . 1 . 1 . . . . . . . . . . . . Impact . | . . . . . . . . . . . . . . . . . . . . . . Slashing . | . . . . . . . . . . . . . . . . . . . . . . Piercing . | . . . . . . . . . . . . . . . . . . . . . . Sneak Attacks 7 | . . . . 4 1 . 1 . 1 . . . . . . . . . . . . Combat Hostiles . | . . . . . . . . . . . . . . . . . . . . . . Follow-up Attacks . | . . . . . . . . . . . . . . . . . . . . . . Damage Inflicted 69116 | . 844 1500 521 . 32 797 1922 235 527 1572 341 . 1573 2531 . 1193 8899 . 2752 19322 24555 Guns . | . . . . . . . . . . . . . . . . . . . . . . Cannons 40559 | . 617 1439 520 . 19 796 1685 231 527 1514 321 . 1573 2478 . 1193 8764 . 2708 6941 9233 Explosions 27863 | . 227 . . . . . 209 . . . . . . 53 . . . . . 12272 15102 Melee . | . . . . . . . . . . . . . . . . . . . . . . Ramming 694 | . . 61 1 . 13 1 28 4 . 58 20 . . . . . 135 . 44 109 220 Kinetic 40559 | . 617 1439 520 . 19 796 1685 231 527 1514 321 . 1573 2478 . 1193 8764 . 2708 6941 9233 Thermal 6540 | . . . . . . . 37 . . . . . . . . . . . . 2959 3544 Explosive 227 | . 227 . . . . . . . . . . . . . . . . . . . . Electromagnetic 21096 | . . . . . . . 172 . . . . . . 53 . . . . . 9313 11558 Impact . | . . . . . . . . . . . . . . . . . . . . . . Slashing . | . . . . . . . . . . . . . . . . . . . . . . Piercing . | . . . . . . . . . . . . . . . . . . . . . . Highest Corruption 44 | . 1 15 24 32 32 . 7 . . . . . . . . . 5 6 12 33 44 Average Corruption 10 | . 1 15 16 31 32 . 4 . . . . . . . . . 2 6 8 12 9 Corruption Purged . | . . . . . . . . . . . . . . . . . . . . . . Corruption Blocked . | . . . . . . . . . . . . . . . . . . . . . . Effects 298 | . 14 5 30 36 6 . 15 . . . . . . . . . 22 1 16 87 66 Message Errors 80 | . 5 . 9 16 1 . 3 . . . . . . . . . 4 . 5 25 12 Matter Fused 57 | . 1 1 8 8 2 . 2 . . . . . . . . . 5 . 4 16 10 Heat Flow Errors 33 | . 2 2 4 4 1 . 2 . . . . . . . . . 1 . . 9 8 Energy Discharges 33 | . 2 . 3 2 1 . 3 . . . . . . . . . 3 1 2 6 10 Parts Rejected 6 | . . . . . . . . . . . . . . . . . . . . 4 2 Parts Fused 4 | . . . . 1 . . . . . . . . . . . . . . . 2 1 Data Loss (minor) 28 | . 2 1 2 3 . . 3 . . . . . . . . . 3 . . 6 8 Data Loss (major) 12 | . . 1 3 2 . . . . . . . . . . . . 3 . . 2 1 Misfires 9 | . 1 . 1 . 1 . 1 . . . . . . . . . 1 . . 3 1 Alerts 5 | . 1 . . . . . 1 . . . . . . . . . . . . 2 1 Misdirections 8 | . . . . . . . . . . . . . . . . . . . . . 8 Weapon Failures 23 | . . . . . . . . . . . . . . . . . 2 . 5 12 4 Overload Shots . | . . . . . . . . . . . . . . . . . . . . . . Overflow Damage 2061 | . . . 41 . . 8 8 . . 335 4 . 367 213 . 52 343 . 42 194 454 Projectiles 1922 | . . . 41 . . 8 5 . . 319 4 . 367 213 . 52 341 . 42 130 400 Explosions 76 | . . . . . . . 3 . . . . . . . . . . . . 33 40 Melee 63 | . . . . . . . . . . 16 . . . . . . 2 . . 31 14 Knockbacks 298 | . 6 12 1 . . 10 24 1 1 3 1 . 6 12 . 5 51 . 19 67 79 Impact 6 | . . . . . . . . . . . . . . . . . 4 . . . 2 Kinetic 260 | . 6 11 1 . . 9 17 1 1 3 1 . 5 11 . 5 41 . 18 63 67 Secondary 32 | . . 1 . . . 1 7 . . . . . 1 1 . . 6 . 1 4 10 Self-Inflicted Damage 1326 | . . . . . 5 . 114 . . . . . . . . . . . . 504 703 Shots 105 | . . . . . . . 5 . . . . . . . . . . . . 40 60 Rammed 23 | . 1 4 1 . 3 . . . . 3 . . . . . . 10 . . . 1 Targets Rammed 52 | . 1 7 1 . 3 1 5 1 . 3 1 . . . . . 13 . 1 4 11 Kicked 24 | . . . . . . 1 5 1 . . . . . . . . 2 . 1 4 10 Crushed 5 | . . 3 . . . . . . . . 1 . . . . . 1 . . . . Highest Temperature 434 | . 273 154 231 220 194 224 183 4 120 72 72 . 434 381 . 23 354 . 260 391 392 Average Temperature 99 | . 64 38 70 80 71 99 25 4 43 22 24 . 141 97 . 8 116 . 63 122 132 Received Heat Transfer 6258 | . 156 261 138 . . 307 495 18 16 . . . 27 459 . 12 1575 . 468 812 1514 Effects 22 | . 1 . . 1 . . . . . . . . . . . . 1 . . 14 5 Shutdowns 2 | . . . . . . . . . . . . . . . . . . . . 2 . Energy Bleed 5 | . . . . . . . . . . . . . . . . . 1 . . 3 1 Interference 13 | . 1 . . 1 . . . . . . . . . . . . . . . 7 4 Matter Decay 2 | . . . . . . . . . . . . . . . . . . . . 2 . Siege Activations 26 | . . . . . . . . . . 10 9 . 2 5 . . . . . . . Total Turns 181 | . . . . . . . . . . 51 37 . 34 59 . . . . . . . Longest Duration 25 | . . . . . . . . . . 10 11 . 17 25 . . . . . . . Martial Activations . | . . . . . . . . . . . . . . . . . . . . . . Shielding Activations 11 | . . . . . . . . . . . . . . . . . . . . . 11 Total Turns 189 | . . . . . . . . . . . . . . . . . . . . . 189 Longest Duration 49 | . . . . . . . . . . . . . . . . . . . . . 49 Robots Disrupted 5 | . . . . . . . . . . . . . . . . . . . . . 5 Combat Hostiles 4 | . . . . . . . . . . . . . . . . . . . . . 4 Robots Corrupted 98 | . . . . . . . . . . . . . . 1 . . 1 . . 48 48 Combat Hostiles 87 | . . . . . . . . . . . . . . . . . . . . 41 46 Parts Fried 191 | . . . . . . . . 1 . 1 . . . 3 . . 7 . . 75 104 Impact Corruptions 9 | . . . . . . . . . . 1 . . . 2 . . 3 . . 2 1 Robots Melted 4 | . . . . . . . . . . . . . . . . . . . . 4 . Combat Hostiles 1 | . . . . . . . . . . . . . . . . . . . . 1 . Parts Melted 2 | . . . . . . . 1 . . . . . . . . . . . . 1 . Heat Transferred 4094 | . . . . . . . 50 . . . . . . . . . . . . 1792 2252 Parts Sabotaged 4 | . . . . . . . . . . . . . . . . . . . . 1 3 Parts Stolen . | . . . . . . . . . . . . . . . . . . . . . . Parts Stripped . | . . . . . . . . . . . . . . . . . . . . . . Power Chain Reactions 50 | . . . . . . . 5 . . . . . . . . . . . . 26 19 Alert | -11 -10 -9 -9 -9 -8 -8 -8 -8 -8 -6 -6 -6 -6 -5 -4 -4 -3 -2 -2 -1 -1 ------- Run | Yrd Mat Mat Min Exi Min Mat Sto Rec Scr Fac Gar Fac DSF Fac Fac DSF Res Res DSF Acc Com Maximum Alert Level 5 | . . . . . . . 2 1 . 2 3 2 2 3 1 2 5 5 5 5 5 Low Security (%) 40 | 100 100 100 100 . 100 100 48 99 . 42 . . . . . . . . . . . Level 1 12 | . . . . . . . 11 . . 46 19 . 11 45 100 30 36 . . . . Level 2 11 | . . . . . . . 40 . . 10 48 100 88 22 . 69 7 . . . . Level 3 7 | . . . . . . . . . . . 31 . . 31 . . 9 . . 22 . Level 4 4 | . . . . . . . . . . . . . . . . . 9 . 69 12 . Level 5 4 | . . . . . . . . . . . . . . . . . 6 100 30 1 29 High Security 19 | . . . . . . . . . . . . . . . . . 29 . . 64 70 Max Security . | . . . . . . . . . . . . . . . . . . . . . . Sterilizations 4 | . . . . . . . . . . . . . 1 . . 1 . . 1 1 . Peak Influence 6602 | . 105 185 113 . 23 110 527 205 . 491 869 455 694 828 396 637 3304 1852 1657 4506 6602 Initial 2883 | . . 16 63 . . . . 184 . . 336 455 308 364 396 269 357 1852 1366 993 2883 Average 1131 | . 43 46 30 . . 11 254 57 . 203 622 450 580 484 388 477 1339 1838 1487 2799 4465 Influence Increases 18259 | . 483 534 124 . 23 286 1047 270 . 779 553 5 416 1190 9 368 3589 . 331 4017 4235 Destroy 0b10 Robot/C 9380 | . 280 300 100 . 20 120 500 40 . 240 280 . 220 500 . 200 1720 . 180 2240 2440 Destroy 0b10 Robot/NC 835 | . 30 60 10 . . 20 50 5 . 40 . . . 100 . 10 155 . . 265 90 Destroy Leader 1654 | . 56 70 10 . . 24 136 . . 72 10 . 30 126 . 40 314 . 40 366 360 Allied During Kill 1433 | . . . . . 3 . . . . 193 76 . 142 232 . 60 511 . 6 97 113 Successful Hack 274 | . 38 41 . . . 31 45 14 . 52 . . . . 5 . 24 . . 24 . Select Force Hacks 210 | . . . . . . . . 210 . . . . . . . . . . . . . Disable Machine 525 | . . 30 . . . 15 105 . . 75 30 . 15 45 . . 105 . . 75 30 Anti-Garrison Action 500 | . . . . . . . . . . . 100 . . . . . 200 . . 200 . Destroy Structure 2008 | . 19 3 4 . . 1 46 1 . 107 42 5 9 172 4 58 410 . 90 510 527 Partial Spotted 15 | . . . . . . . . . . . . . . 15 . . . . . . . Lose Combat Pursuer 1425 | . 60 30 . . . 75 165 . . . 15 . . . . . 150 . 15 240 675 Influence Decreases 11667 | . 442 412 287 . 23 286 572 745 . 298 165 434 162 1074 434 116 932 1472 496 1168 2149 Entered New Map 6432 | . . 25 100 . . . . 291 . . 145 414 132 330 414 116 280 1442 456 664 1623 Time Decay 4206 | . 442 367 177 . . 161 571 454 . 298 . 20 . 514 20 . 502 30 . 404 246 Lost Part 501 | . . 20 10 . . 10 1 . . . . . 10 20 . . 130 . 20 60 220 Lost Ally 263 | . . . . . 23 . . . . . 20 . 20 60 . . 20 . 20 40 60 Purge Threat 265 | . . . . . . 115 . . . . . . . 150 . . . . . . . Squads Dispatched 130 | . 3 4 . . . 4 2 . . 5 . . 2 7 . 2 34 . 2 27 38 Investigation 7 | . 2 2 . . . . 1 . . . . . . . . . 1 . . 1 . Extermination 8 | . . . . . . . . . . 2 . . . 2 . . 2 . . 1 1 Reinforcement 25 | . 1 2 . . . 1 1 . . . . . 2 4 . 2 5 . 2 4 1 Assault 79 | . . . . . . . . . . . . . . . . . 24 . . 19 36 Garrison 11 | . . . . . . 3 . . . 3 . . . 1 . . 2 . . 2 . Intercept . | . . . . . . . . . . . . . . . . . . . . . . Searches Triggered . | . . . . . . . . . . . . . . . . . . . . . . Construction Impeded 6 | . . . . . . . . . . . . . . 1 . . 2 . . 3 . Haulers Reinforced 2 | . . . . . . . . . . . . . . . . . 1 . . 1 . Active Scanning Responses . | . . . . . . . . . . . . . . . . . . . . . . Cargo Convoy Interrupts . | . . . . . . . . . . . . . . . . . . . . . . Stealth | -11 -10 -9 -9 -9 -8 -8 -8 -8 -8 -6 -6 -6 -6 -5 -4 -4 -3 -2 -2 -1 -1 --------- Run | Yrd Mat Mat Min Exi Min Mat Sto Rec Scr Fac Gar Fac DSF Fac Fac DSF Res Res DSF Acc Com Distress Signals 25 | . . . . . . 1 4 1 . 1 . . . 2 . . 5 . . 9 2 Communications Jammed . | . . . . . . . . . . . . . . . . . . . . . . Distress Signals . | . . . . . . . . . . . . . . . . . . . . . . Times Spotted 803 | . 30 23 13 . 4 15 42 5 17 13 4 . 7 29 . 10 115 . 22 193 261 Peak Tracking Total 42 | . 4 6 4 . 3 5 5 1 10 4 3 . 4 5 . 2 21 . 8 16 42 Tactical Retreats 51 | . 4 1 1 . . 3 10 . . . 1 . . . . . 4 . 1 13 13 Traps | -11 -10 -9 -9 -9 -8 -8 -8 -8 -8 -6 -6 -6 -6 -5 -4 -4 -3 -2 -2 -1 -1 ------- Run | Yrd Mat Mat Min Exi Min Mat Sto Rec Scr Fac Gar Fac DSF Fac Fac DSF Res Res DSF Acc Com Traps Triggered 15 | . 3 . . . . . 2 . . . . . . 1 . . . . 1 2 6 Indirectly 1 | . . . . . . . . . . . . . . . . . . . . . 1 Trap Hack Attempts . | . . . . . . . . . . . . . . . . . . . . . . Triggered . | . . . . . . . . . . . . . . . . . . . . . . Disarmed . | . . . . . . . . . . . . . . . . . . . . . . Reprogrammed . | . . . . . . . . . . . . . . . . . . . . . . Reused . | . . . . . . . . . . . . . . . . . . . . . . Traps Extracted . | . . . . . . . . . . . . . . . . . . . . . . Installed . | . . . . . . . . . . . . . . . . . . . . . . Triggered . | . . . . . . . . . . . . . . . . . . . . . . Machines | -11 -10 -9 -9 -9 -8 -8 -8 -8 -8 -6 -6 -6 -6 -5 -4 -4 -3 -2 -2 -1 -1 ---------- Run | Yrd Mat Mat Min Exi Min Mat Sto Rec Scr Fac Gar Fac DSF Fac Fac DSF Res Res DSF Acc Com Machines Disabled 46 | . . 2 . . . 1 7 . 7 5 4 . 1 3 . . 7 . . 7 2 Max in Single Turn 2 | . . 1 . . . 1 1 . . 1 1 . . 1 . . 1 . . 2 1 Garrison Access 6 | . . . . . . . . . . . . . . . . . 1 . . 5 . Garrison Relay 2 | . . . . . . . . . . . 2 . . . . . . . . . . Energy Cycler 2 | . . . . . . . . . . . . . . . . . . . . 2 . Machines Repaired . | . . . . . . . . . . . . . . . . . . . . . . Machines Dismantled . | . . . . . . . . . . . . . . . . . . . . . . Machines Sabotaged . | . . . . . . . . . . . . . . . . . . . . . . Overloaded Fab Kills . | . . . . . . . . . . . . . . . . . . . . . . Hacking | -11 -10 -9 -9 -9 -8 -8 -8 -8 -8 -6 -6 -6 -6 -5 -4 -4 -3 -2 -2 -1 -1 --------- Run | Yrd Mat Mat Min Exi Min Mat Sto Rec Scr Fac Gar Fac DSF Fac Fac DSF Res Res DSF Acc Com Machines Accessed 73 | . 8 5 1 2 . 4 13 13 . 9 . 1 . 4 1 . 7 1 . 3 1 Terminals 47 | . 7 4 . . . 4 9 6 . 7 . 1 . 4 1 . 1 1 . 1 1 Fabricators . | . . . . . . . . . . . . . . . . . . . . . . Repair Stations 2 | . 1 . . . . . 1 . . . . . . . . . . . . . . Recycling Units 9 | . . . . . . . 2 7 . . . . . . . . . . . . . Scanalyzers 5 | . . 1 . . . . . . . . . . . . . . 3 . . 1 . Garrison Access 7 | . . . . . . . 1 . . 2 . . . . . . 3 . . 1 . Total Hacks 173 | . 20 12 1 5 . 12 34 38 . 21 . 3 . 7 2 . 11 2 . 4 1 Successful 87 | . 9 6 1 5 . 6 16 26 . 8 . 1 . 1 1 . 4 1 . 2 . Failed 84 | . 11 5 . . . 6 18 12 . 13 . 2 . 6 1 . 6 1 . 2 1 Catastrophic 20 | . 3 1 . . . 1 3 . . 6 . . . 2 . . 4 . . . . Database Lockouts 2 | . . 1 . . . . . . . . . . . . . . 1 . . . . Manual 68 | . 17 3 . 1 . 8 7 24 . 4 . . . . . . 2 . . 1 1 Terminals 120 | . 18 10 . . . 12 25 20 . 18 . 3 . 7 2 . 1 2 . 1 1 Fabricators . | . . . . . . . . . . . . . . . . . . . . . . Repair Stations 4 | . 2 . . . . . 2 . . . . . . . . . . . . . . Recycling Units 23 | . . . . . . . 5 18 . . . . . . . . . . . . . Scanalyzers 10 | . . 2 . . . . . . . . . . . . . . 6 . . 2 . Garrison Access 10 | . . . . . . . 2 . . 3 . . . . . . 4 . . 1 . Terminal Hacks 45 | . 5 3 1 5 . 6 12 3 . 5 . 1 . 1 1 . 1 1 . . . Record 4 | . . . . 4 . . . . . . . . . . . . . . . . . Part Schematic 4 | . 2 1 . . . . 1 . . . . . . . . . . . . . . Robot Analysis 6 | . 1 . . . . 2 1 1 . 1 . . . . . . . . . . . Prototype ID Bank 6 | . 2 . . . . . 3 1 . . . . . . . . . . . . . Open Door 4 | . . . 1 . . . 3 . . . . . . . . . . . . . . Open DSF 5 | . . . . . . . . . . 1 . 1 . . 1 . 1 1 . . . Level Access Points 1 | . . 1 . . . . . . . . . . . . . . . . . . . Branch Access Points 2 | . . . . . . 1 . . . 1 . . . . . . . . . . . Unreport Threat 2 | . . . . . . 1 . . . . . . . 1 . . . . . . . Hauler Manifests 3 | . . 1 . . . 1 1 . . . . . . . . . . . . . . Registered Components 1 | . . . . . . . . . . 1 . . . . . . . . . . . Zone Layout 6 | . . . . . . 1 3 1 . 1 . . . . . . . . . . . Proto ID Catalog 1 | . . . . 1 . . . . . . . . . . . . . . . . . Fabricator Hacks . | . . . . . . . . . . . . . . . . . . . . . . Repair Station Hacks 4 | . 2 . . . . . 2 . . . . . . . . . . . . . . Scan Component 2 | . 1 . . . . . 1 . . . . . . . . . . . . . . Repair 2 | . 1 . . . . . 1 . . . . . . . . . . . . . . Recycling Unit Hacks 10 | . . . . . . . 1 9 . . . . . . . . . . . . . Report Inventory 7 | . . . . . . . . 7 . . . . . . . . . . . . . Retrieve Components 3 | . . . . . . . 1 2 . . . . . . . . . . . . . Scanalyzer 5 | . . 2 . . . . . . . . . . . . . . 2 . . 1 . Insert Component 1 | . . . . . . . . . . . . . . . . . 1 . . . . Retrieve Study 4 | . . 2 . . . . . . . . . . . . . . 1 . . 1 . Garrison Access Hacks 2 | . . . . . . . 1 . . 1 . . . . . . . . . . . Unlock Access 2 | . . . . . . . 1 . . 1 . . . . . . . . . . . Unauthorized Hacks 21 | . 2 1 . . . . . 14 . 2 . . . . . . 1 . . 1 . Terminals 12 | . 2 1 . . . . . 7 . 2 . . . . . . . . . . . Botnet 6 | . 1 1 . . . . . 2 . 2 . . . . . . . . . . . Operators 1 | . 1 . . . . . . . . . . . . . . . . . . . . Skim 5 | . . . . . . . . 5 . . . . . . . . . . . . . Fabricators . | . . . . . . . . . . . . . . . . . . . . . . Repair Stations . | . . . . . . . . . . . . . . . . . . . . . . Recycling Units 7 | . . . . . . . . 7 . . . . . . . . . . . . . Tunnel 7 | . . . . . . . . 7 . . . . . . . . . . . . . Scanalyzers . | . . . . . . . . . . . . . . . . . . . . . . Garrison Access 2 | . . . . . . . . . . . . . . . . . 1 . . 1 . Jam 2 | . . . . . . . . . . . . . . . . . 1 . . 1 . Data Cores Recovered 3 | . . 1 . . . . 1 . . . . . . 1 . . . . . . . Used 1 | . . . . . . . . . . . . . . 1 . . . . . . . Hacking Detections 55 | . 6 5 . . . 4 8 8 . 9 . 1 . 4 1 . 5 1 . 2 1 Full Trace Events 3 | . . 1 . . . . 1 1 . . . . . . . . . . . . . Feedback Events . | . . . . . . . . . . . . . . . . . . . . . . Feedback Blocked . | . . . . . . . . . . . . . . . . . . . . . . Robot Schematics Acquired . | . . . . . . . . . . . . . . . . . . . . . . Robots Built . | . . . . . . . . . . . . . . . . . . . . . . Authchips . | . . . . . . . . . . . . . . . . . . . . . . Time . | . . . . . . . . . . . . . . . . . . . . . . Total Robot Build Rating . | . . . . . . . . . . . . . . . . . . . . . . Part Schematics Acquired 4 | . 2 1 . . . . 1 . . . . . . . . . . . . . . Parts Built . | . . . . . . . . . . . . . . . . . . . . . . Authchips . | . . . . . . . . . . . . . . . . . . . . . . Time . | . . . . . . . . . . . . . . . . . . . . . . Total Part Build Rating . | . . . . . . . . . . . . . . . . . . . . . . Part Studies Acquired 4 | . . 2 . . . . . . . . . . . . . . 1 . . 1 . Parts Repaired 2 | . 1 . . . . . 1 . . . . . . . . . . . . . . Time 64 | . 26 . . . . . 38 . . . . . . . . . . . . . . Parts Recycled . | . . . . . . . . . . . . . . . . . . . . . . Recycled Matter . | . . . . . . . . . . . . . . . . . . . . . . Retrieved Matter . | . . . . . . . . . . . . . . . . . . . . . . Retrieved Components 15 | . . . . . . . 10 5 . . . . . . . . . . . . . Parts Scanalyzed 1 | . . . . . . . . . . . . . . . . . 1 . . . . Part Schematics Acquired . | . . . . . . . . . . . . . . . . . . . . . . Parts Damaged . | . . . . . . . . . . . . . . . . . . . . . . Bothacking | -11 -10 -9 -9 -9 -8 -8 -8 -8 -8 -6 -6 -6 -6 -5 -4 -4 -3 -2 -2 -1 -1 ------------ Run | Yrd Mat Mat Min Exi Min Mat Sto Rec Scr Fac Gar Fac DSF Fac Fac DSF Res Res DSF Acc Com Used RIF Installer . | . . . . . . . . . . . . . . . . . . . . . . Robots Hacked 10 | . . . . 4 1 . 1 . 1 1 . . . 1 . . 1 . . . . Non-combat 5 | . . . . 3 1 . . . . . . . . 1 . . . . . . . Combat 5 | . . . . 1 . . 1 . 1 1 . . . . . . 1 . . . . Robot Hacks Applied 10 | . . . . 4 1 . 1 . 1 1 . . . 1 . . 1 . . . . parse_system 9 | . . . . 4 1 . 1 . 1 1 . . . . . . 1 . . . . find_fabricator 1 | . . . . . . . . . . . . . . 1 . . . . . . . Relay Couplers Released 14 | . . . . . . . . . . . 9 . . . . . 4 . . 1 . Machine Destruction 10 | . . . . . . . . . . . 9 . . . . . . . . 1 . Programmers 4 | . . . . . . . . . . . . . . . . . 4 . . . . Fabnet Peak Effective % . | . . . . . . . . . . . . . . . . . . . . . . Robots Rewired . | . . . . . . . . . . . . . . . . . . . . . . Allies Hacked . | . . . . . . . . . . . . . . . . . . . . . . Hacks Repelled . | . . . . . . . . . . . . . . . . . . . . . . Allies | -11 -10 -9 -9 -9 -8 -8 -8 -8 -8 -6 -6 -6 -6 -5 -4 -4 -3 -2 -2 -1 -1 -------- Run | Yrd Mat Mat Min Exi Min Mat Sto Rec Scr Fac Gar Fac DSF Fac Fac DSF Res Res DSF Acc Com Total Allies 21 | . . . 3 . . . . . 1 4 2 . . . . . 1 . 2 5 3 Largest Group 5 | . . . 3 3 3 . . . 1 5 5 5 5 4 1 1 1 . 2 3 2 Highest-Rated Group 679 | . . . 15 15 15 . . . 464 570 679 679 679 592 454 454 568 . 88 246 238 Highest-Rated Ally 568 | . . . 5 5 5 . . . 464 454 454 454 454 454 454 454 568 . 58 82 119 Initial Warlord ECA Mod 29 | . . . . . . . . . . . . 4 4 13 12 12 21 20 20 29 29 Total Orders 1 | . . . . . . . . . . . . . . 1 . . . . . . . STAY 1 | . . . . . . . . . . . . . . 1 . . . . . . . Ally Attacks 426 | . . . 8 . 7 . . . 42 46 29 . 54 67 . 15 92 . 9 31 26 Total Damage 21787 | . . . 26 . 49 . . . 3328 739 1487 . 1143 2930 . 1251 8455 . 90 841 1448 Kills 145 | . . . 1 . 1 . . . 17 9 11 . 6 26 . 5 60 . . 5 4 Allies Corrupted . | . . . . . . . . . . . . . . . . . . . . . . Allies Melted . | . . . . . . . . . . . . . . . . . . . . . . X0-1V1 Amusement Gains 277 | . 4 . 20 . . . 30 30 . 5 . . . 20 . 5 74 . . 40 49 Average Entertainment 42 | . 4 1 20 . 6 2 5 5 21 13 13 13 13 32 21 23 90 60 60 85 92 Good Acts 102 | . . 1 3 . . . 25 5 1 4 . . . 5 . 1 10 . 4 24 19 Bad Acts 56 | . . 14 3 . 1 3 7 . . 1 1 . . 3 . 2 1 1 2 9 8 Intel | -11 -10 -9 -9 -9 -8 -8 -8 -8 -8 -6 -6 -6 -6 -5 -4 -4 -3 -2 -2 -1 -1 ------- Run | Yrd Mat Mat Min Exi Min Mat Sto Rec Scr Fac Gar Fac DSF Fac Fac DSF Res Res DSF Acc Com Active Infowar (turns) 592 | . 592 . . . . . . . . . . . . . . . . . . . . T.N.C. 592 | . 592 . . . . . . . . . . . . . . . . . . . . Robot Analysis Total 6 | . 1 . . . . 2 1 1 . 1 . . . . . . . . . . . Derelict Logs Recovered 2 | . . . 2 . . . . . . . . . . . . . . . . . . Drone Launches 4 | . . . . . . . 4 . . . . . . . . . . . . . . Drone Recoveries . | . . . . . . . . . . . . . . . . . . . . . . Exploration | -11 -10 -9 -9 -9 -8 -8 -8 -8 -8 -6 -6 -6 -6 -5 -4 -4 -3 -2 -2 -1 -1 ------------- Run | Yrd Mat Mat Min Exi Min Mat Sto Rec Scr Fac Gar Fac DSF Fac Fac DSF Res Res DSF Acc Com Turns Passed 21222 | 66 1348 1200 714 758 130 736 2396 1808 2030 780 422 40 233 1413 54 294 1908 72 386 2693 1741 Spaces Moved 8574 | 40 697 448 341 438 64 243 793 692 785 543 270 30 74 660 20 105 688 29 140 909 565 Core 61 | 7 . . . . . . . . . . . . . . . . . . . . 54 Treads 3435 | 33 697 379 . . . . . . . 543 270 30 74 660 20 105 623 . . . 1 Legs 4162 | . . . . . . 239 793 692 785 . . . . . . . 65 29 140 909 510 Wheels 916 | . . 69 341 438 64 4 . . . . . . . . . . . . . . . Hover . | . . . . . . . . . . . . . . . . . . . . . . Flight . | . . . . . . . . . . . . . . . . . . . . . . Fastest Speed 50 | 50 160 155 155 170 170 170 250 250 250 120 120 120 120 158 248 168 164 250 111 178 50 Average Speed 195 | 148 160 159 169 170 170 249 250 250 250 120 120 120 211 183 248 193 205 250 136 192 193 Slowest Speed 600 | 160 160 200 170 170 170 360 250 250 250 120 120 120 340 248 248 248 250 250 250 223 600 Overloaded Moves . | . . . . . . . . . . . . . . . . . . . . . . Propulsion Burnouts . | . . . . . . . . . . . . . . . . . . . . . . Robots Hopped 1 | . . . . . . . 1 . . . . . . . . . . . . . . Potential Cave-ins 13 | . . . . . . . . . . . . . . . . . 2 . . 5 6 Cave-ins Triggered 2 | . . . . . . . . . . . . . . . . . . . . . 2 Exploration Rate (%) 45 | 3 93 44 59 84 23 29 91 93 56 21 35 2 73 23 2 86 24 2 96 29 35 Regions Visited 21 Branch Regions 7 Pre-discovered Areas 13 | . . . 1 1 . . . 11 . . . . . . . . . . . . . Known Exits Taken 10 | . . . . . 1 1 . 1 1 1 . 1 . . 1 . 1 1 . 1 . Unknown Exits Taken 7 | 1 1 1 1 1 . . 1 . . . . . . 1 . . . . . . . Scrap Searched 6 | . . . 1 . . . . . 5 . . . . . . . . . . . . Spaces Dug 62 | . . . . . . . . . . 8 17 . . . . . 2 . 4 18 13 Terrain Destroyed 666 | . 19 1 5 . . 1 34 1 . 26 20 . 11 29 . 8 63 . 35 198 215 Melee . | . . . . . . . . . . . . . . . . . . . . . . Projectile 415 | . . 1 5 . . 1 4 1 . 26 20 . 11 29 . 8 63 . 35 100 111 AOE 251 | . 19 . . . . . 30 . . . . . . . . . . . . 98 104 Terrain Rammed . | . . . . . . . . . . . . . . . . . . . . . . Walls Destroyed . | . . . . . . . . . . . . . . . . . . . . . . Machines Disabled . | . . . . . . . . . . . . . . . . . . . . . . Actions | -11 -10 -9 -9 -9 -8 -8 -8 -8 -8 -6 -6 -6 -6 -5 -4 -4 -3 -2 -2 -1 -1 --------- Run | Yrd Mat Mat Min Exi Min Mat Sto Rec Scr Fac Gar Fac DSF Fac Fac DSF Res Res DSF Acc Com Total 11412 | 45 872 815 436 454 81 321 1063 754 833 663 354 34 133 787 24 162 932 29 265 1410 945 Wait 1057 | . 107 265 44 8 9 3 123 35 . 58 67 5 23 69 1 13 53 . 15 66 93 Move 8553 | 39 696 447 340 437 63 242 790 691 784 543 269 29 73 659 19 104 687 28 139 909 565 Hop 1 | . . . . . . . 1 . . . . . . . . . . . . . . Pick Up 176 | 2 13 14 6 2 . 5 7 4 11 13 . . 5 8 1 7 18 . 20 30 10 Fast Attach 75 | 3 5 . . . . 5 2 . 1 1 2 . 6 1 1 3 5 1 12 21 6 Attach 94 | 1 3 5 1 1 1 1 2 . 4 8 . . 1 7 1 1 13 . 12 11 21 Detach 38 | . 2 . 1 . . . 1 . . 6 . . 1 1 . . 10 . 7 4 5 Swap 158 | . . 5 1 . . . 1 3 7 . . . 2 6 1 6 20 . 8 63 35 Drop 174 | . 2 12 4 2 . 9 8 4 12 10 . . 5 1 . 14 25 . 14 40 12 Fire 942 | . 43 60 38 . 2 55 120 15 13 17 13 . 17 35 . 14 88 . 37 217 158 Melee 9 | . . . . 4 3 . 1 . 1 . . . . . . . . . . . . Ram 5 | . . . 1 . 3 . . . . . . . . . . . . . . . 1 Kick 23 | . . . . . . 1 5 1 . . . . . . . . 2 . 1 3 10 Crush 23 | . 1 7 . . . . . . . 3 1 . . . . . 11 . . . . Escape Stasis 57 | . . . . . . . . . . . 2 . . . . . . . . 26 29 Rewire 5 | . . . . . . . . 1 . 4 . . . . . . . . . . . Trap . | . . . . . . . . . . . . . . . . . . . . . . Miscellaneous 22 | . . . . . . . 2 . . . . . . . . . . . . 20 . Route ------- -11/Scrapyard -10/Materials (discovered 6 exits: *Mat x3 / [*Min x2] / [*Sub]) -9/Materials (discovered 4 exits: *Mat x3 / *Min) -9/Mines (discovered 3 exits: *Mat x2 / *Exi) -9/Exiles (discovered 2 exits: [*Min x2]) -8/Mines -8/Materials (discovered 2 exits: *Fac / *Sto) -8/Storage (discovered 3 exits: *Fac / *Rec / Gar) -8/Recycling (discovered 2 exits: *Fac / *Scr) -8/Scraptown (discovered 2 exits: *Fac x2) -6/Factory (discovered 4 exits: Fac / *Low x2 / Gar) -6/Garrison -6/Factory (discovered 2 exits: *Fac / DSF) -6/DSF -5/Factory -4/Factory (discovered 2 exits: Ext / DSF) -4/DSF -3/Research (discovered 3 exits: *Res x3) -2/Research -2/DSF -1/Access (discovered 2 exits: Sur / *Com) -1/Command (discovered 1 exit: Sur) History --------- Turn | Location | Event 14 | -11/Scrapyard | Discovered new exit (range 16) 67 | -11/Scrapyard | Entered Materials 132 | -10/Materials | Discovered new exit (range 15) 305 | -10/Materials | Build established: Mutant 464 | -10/Materials | Repaired Lgt. Cannon 732 | -10/Materials | Discovered new exit (range 10) 1000 | -10/Materials | Discovered new exit (range 16) 1191 | -10/Materials | Discovered new exit (range 15) 1327 | -10/Materials | Discovered new exit (range 16) 1374 | -10/Materials | Discovered new exit (range 5) 1406 | -10/Materials | Prayed at D.C.S.S. Altar Unit 1415 | -10/Materials | Entered another Materials area 1415 | -9/Materials | Evolved 2 slots: Propulsion x1, Utility x1 1509 | -9/Materials | Sight range permanently improved by X0-1V1 (+1; -150 max core) 1608 | -9/Materials | X0-1V1 sent hostile G-34 Mercenary (x3) 1635 | -9/Materials | X0-1V1 caused items to flee you 1678 | -9/Materials | Central database locked down 1801 | -9/Materials | Items stopped fleeing you 2022 | -9/Materials | X0-1V1 vaporized surrounding terrain (radius 17) 2036 | -9/Materials | X0-1V1 announced a LAN party 2221 | -9/Materials | Discovered new exit (range 13) 2265 | -9/Materials | Identified exit to Materials 2421 | -9/Materials | X0-1V1 sent you into danger 2504 | -9/Materials | System corruption reached 10% 2560 | -9/Materials | Discovered new exit (range 12) 2615 | -9/Materials | Entered Mines 2616 | -9/Mines | Assembled infested the area 2677 | -9/Mines | Learned Materials emergency access door positions 2743 | -9/Mines | Core integrity fell below 50% 2971 | -9/Mines | Discovered exit to Materials (range 4) 3004 | -9/Mines | Discovered exit to Materials (range 5) 3035 | -9/Mines | Met a Derelict who couldn't figure out how to use a Trap Extractor 3171 | -9/Mines | Learned location of Recycling (-8) 3212 | -9/Mines | X0-1V1 activates XOMVISION 3286 | -9/Mines | X0-1V1 sent allied S-10 Pest (x3) 3319 | -9/Mines | Deemed a non-threat by the Exiles lab entrance 3321 | -9/Mines | Discovered new exit (range 5) 3329 | -9/Mines | Entered Exiles 3329 | -9/Exiles | Accompanied by 3 allies 3331 | -9/Exiles | System corruption reached 30% 3354 | -9/Exiles | Discovered new exit (range 15) 3374 | -9/Exiles | Met 8R-AWN 3404 | -9/Exiles | Met EX-HEX 3451 | -9/Exiles | Met EX-BIN 3510 | -9/Exiles | Met EX-DEC 3520 | -9/Exiles | Learned location of Zion (-7) 3590 | -9/Exiles | Visited The Gauntlet 3827 | -9/Exiles | Aligned with FarCom system 3829 | -9/Exiles | Given EX-Vault access code 3875 | -9/Exiles | Opened EX-Vault 3917 | -9/Exiles | Warned to stay clear of 0b10 Research branches 4071 | -9/Exiles | Discovered new exit (range 10) 4087 | -9/Exiles | Entered Mines 4087 | -8/Mines | Accompanied by 3 allies 4202 | -8/Mines | Discovered exit to Materials (range 8) 4217 | -8/Mines | Entered Materials 4217 | -8/Materials | Evolved 2 slots: Propulsion x1, Utility x1 4239 | -8/Materials | Lost 3 allies 4284 | -8/Materials | Identified exit to Storage 4371 | -8/Materials | Garrison activated, responded to threat 4493 | -8/Materials | Met 7R-MNS 4577 | -8/Materials | Discovered new exit (range 6) 4953 | -8/Materials | Entered Storage 5458 | -8/Storage | Repaired Hvy. Armor Plating 5487 | -8/Storage | Used back door to open Recycling access 5487 | -8/Storage | Discovered new exit (range 5) 5497 | -8/Storage | Ranged accuracy permanently improved by X0-1V1 (+5%; -50 max core) 5872 | -8/Storage | Core integrity fell below 50% 6342 | -8/Storage | Core integrity restored by X0-1V1 (+87) 6355 | -8/Storage | X0-1V1 foreshadows a heat wave 6387 | -8/Storage | X0-1V1 activates XOMVISION 6407 | -8/Storage | Identified exit to Factory 6407 | -8/Storage | X0-1V1 revealed exit location to -7/Factory 6601 | -8/Storage | Ambient heat levels rising (+10) 6813 | -8/Storage | Ambient heat levels rising (+10) 6816 | -8/Storage | Met 01-MTF 6975 | -8/Storage | Lost 3 allies 7028 | -8/Storage | Core integrity restored by X0-1V1 (+105) 7077 | -8/Storage | Identified exit to Garrison 7172 | -8/Storage | Ambient heat levels falling (-10) 7349 | -8/Storage | Entered Recycling 7349 | -8/Recycling | Accompanied by 1 ally (01-MTF) 7502 | -8/Recycling | Identified exit to Scraptown 7502 | -8/Recycling | X0-1V1 revealed exit location to -8/Scraptown 7559 | -8/Recycling | X0-1V1 activates XOMVISION 8022 | -8/Recycling | Discovered new exit (range 8) 8772 | -8/Recycling | Learned Factory security intel 8807 | -8/Recycling | Learned Storage terminal intel 8857 | -8/Recycling | Learned Factory trap positions 8859 | -8/Recycling | Learned location of Extension (-4) 8860 | -8/Recycling | Learned location of 1 exit from Storage 8912 | -8/Recycling | Learned location of Lower Caves (-7) 9055 | -8/Recycling | Scanned before Scraplab entrance 9127 | -8/Recycling | Core integrity permanently improved by X0-1V1 (+350) 9134 | -8/Recycling | Entered Scraplab 9157 | -8/Recycling | Entered Scraptown 9497 | -8/Scraptown | Visited SPCMW 9522 | -8/Scraptown | Visited Junk Repository 9593 | -8/Scraptown | Visited Awakened 9643 | -8/Scraptown | Visited Cyclists 9668 | -8/Scraptown | Visited Assassins FH 9700 | -8/Scraptown | Visited Symbiants 10193 | -8/Scraptown | Heard Great Nut preacher, LISTEN AND RECITE! 10262 | -8/Scraptown | Discovered new exit (range 11) 10751 | -8/Scraptown | X0-1V1 brought Wyrm Statue to life 10751 | -8/Scraptown | Attacked by Scraptown defenders 10878 | -8/Scraptown | Identified exit to Factory 10878 | -8/Scraptown | X0-1V1 revealed exit location to -6/Factory 10890 | -8/Scraptown | Attached CPS modules to Chaos Wyrm 10905 | -8/Scraptown | Attached CPS modules to Triborg 10933 | -8/Scraptown | Allies destroyed Triborg 10952 | -8/Scraptown | Found Tri-treads 10958 | -8/Scraptown | Found Tri-treads 10968 | -8/Scraptown | Found Siege Cannon 10982 | -8/Scraptown | Found Siege Articulator 10986 | -8/Scraptown | Found Siege Articulator 11187 | -8/Scraptown | Entered Factory 11187 | -6/Factory | Accompanied by 1 ally 11187 | -6/Factory | Evolved 4 slots: Propulsion x2, Utility x1, Weapon x1 11188 | -6/Factory | Loaded intel: 114 trap records 11269 | -6/Factory | X0-1V1 sent you to a vault 11320 | -6/Factory | Discovered new exit (range 10) 11479 | -6/Factory | Build established: Scavenger-Tank 11515 | -6/Factory | Garrison activated, responded to threat 11680 | -6/Factory | Identified exit to Factory 11680 | -6/Factory | X0-1V1 revealed exit location to -5/Factory 11845 | -6/Factory | Identified exit to Lower Caves 11964 | -6/Factory | Identified exit to Garrison 11967 | -6/Factory | Entered Garrison 11967 | -6/Garrison | Accompanied by 4 allies 12037 | -6/Garrison | Triggered checkpoint 12072 | -6/Garrison | Triggered checkpoint 12077 | -6/Garrison | Garrison Relay disabled 12161 | -6/Garrison | Discovered new exit (range 9) 12235 | -6/Garrison | Found embedded Infiltrators 12333 | -6/Garrison | Garrison Relay disabled 12389 | -6/Garrison | Entered Factory 12389 | -6/Factory | Accompanied by 5 allies 12422 | -6/Factory | Identified exit to DSF 12428 | -6/Factory | Discovered exit to Factory (range 13) 12429 | -6/Factory | Entered DSF 12429 | -6/DSF | Accompanied by 5 allies 12449 | -6/DSF | Additional patrols routed to DSF 12467 | -6/DSF | Attached CPS modules to H-61 Shepherd 12568 | -6/DSF | Sterilization system engaged 12588 | -6/DSF | Ambient heat levels rising (+10) 12603 | -6/DSF | Ambient heat levels rising (+10) 12618 | -6/DSF | Ambient heat levels rising (+10) 12628 | -6/DSF | Discovered exit to Factory (range 14) 12633 | -6/DSF | Ambient heat levels rising (+10) 12648 | -6/DSF | Ambient heat levels rising (+10) 12662 | -6/DSF | Entered Factory 12662 | -5/Factory | Accompanied by 4 allies 12662 | -5/Factory | Evolved 2 slots: Propulsion x1, Weapon x1 12886 | -5/Factory | X0-1V1 caused items to flee you 13088 | -5/Factory | Items stopped fleeing you 13552 | -5/Factory | Attached CPS modules to H-71 Marshal 13573 | -5/Factory | Garrison activated, responded to threat 13738 | -5/Factory | X0-1V1 announced a LAN party 13938 | -5/Factory | Allied Derelicts emerged from ambush trap array 13995 | -5/Factory | Build established: Scavenger-Gunner 14035 | -5/Factory | Discovered new exit (range 16) 14075 | -5/Factory | Entered another Factory area 14075 | -4/Factory | Accompanied by 1 ally 14075 | -4/Factory | Evolved 2 slots: Power x1, Utility x1 14076 | -4/Factory | Identified exit to Extension 14125 | -4/Factory | Identified exit to DSF 14129 | -4/Factory | Entered DSF 14129 | -4/DSF | Accompanied by 1 ally 14146 | -4/DSF | Additional patrols routed to DSF 14150 | -4/DSF | Found Hvy. Reflective Plating 14154 | -4/DSF | Found Hvy. Reflective Plating 14155 | -4/DSF | X0-1V1 vaporized surrounding terrain (radius 16) 14281 | -4/DSF | Attached CPS modules to H-71 Marshal 14326 | -4/DSF | Sterilization system engaged 14328 | -4/DSF | Discovered new exit (range 16) 14342 | -4/DSF | X0-1V1 sent you into danger 14346 | -4/DSF | Ambient heat levels rising (+10) 14361 | -4/DSF | Ambient heat levels rising (+10) 14376 | -4/DSF | Ambient heat levels rising (+10) 14391 | -4/DSF | Ambient heat levels rising (+10) 14406 | -4/DSF | Ambient heat levels rising (+10) 14421 | -4/DSF | Ambient heat levels rising (+10) 14423 | -4/DSF | Entered Research 14423 | -3/Research | Accompanied by 1 ally 14423 | -3/Research | Evolved 2 slots: Weapon x2 14587 | -3/Research | Chaos Wyrm evolved into Greater Chaos Wyrm 14592 | -3/Research | Attached CPS modules to Greater Chaos Wyrm 14610 | -3/Research | Found Wyrmplate 14726 | -3/Research | Build established: Scavenger-Executioner 14733 | -3/Research | Discovered new exit (range 10) 14781 | -3/Research | X0-1V1 sent you to a vault 14785 | -3/Research | Found Prototype Reactor 14785 | -3/Research | Identified Vortex Chain Reactor 14789 | -3/Research | Found Prototype Processor 14789 | -3/Research | Identified Exp. Armor Integrity Analyzer 14805 | -3/Research | Found Vortex Chain Reactor 15003 | -3/Research | Identified exit to Research 15003 | -3/Research | X0-1V1 revealed exit location to -2/Research 15123 | -3/Research | Garrison activated, responded to threat 15236 | -3/Research | Spotted B-86 Titan 15240 | -3/Research | Allies destroyed B-86 Titan 15524 | -3/Research | Spotted B-86 Titan 15547 | -3/Research | Destroyed B-86 Titan 15673 | -3/Research | First assault squad dispatched 15673 | -3/Research | Central database locked down 15746 | -3/Research | X0-1V1 revealed exit location to -2/Research 15766 | -3/Research | High security lockdown imminent 15846 | -3/Research | High security lockdown engaged 15939 | -3/Research | Destroyed 8 combat bots 16079 | -3/Research | Found Exp. Weapon Cycler 16111 | -3/Research | Found Exp. Kinecellerator 16215 | -3/Research | Spotted Executioner 16215 | -3/Research | Spotted Striker 16225 | -3/Research | Lost 9 parts (8n1u) 16229 | -3/Research | Spotted Striker 16267 | -3/Research | Core integrity fell below 50% 16331 | -3/Research | Entered another Research area 16331 | -2/Research | Evolved 2 slots: Utility x2 16398 | -2/Research | Identified exit to DSF 16403 | -2/Research | Entered DSF 16477 | -2/DSF | Additional patrols routed to DSF 16484 | -2/DSF | Build established: Mutant 16580 | -2/DSF | System corruption reached 10% 16622 | -2/DSF | X0-1V1 sent you into danger 16674 | -2/DSF | X0-1V1 turns hostiles against one another 16709 | -2/DSF | Discovered new exit (range 14) 16712 | -2/DSF | Found Gamma Bomb Array 16779 | -2/DSF | Sterilization system engaged 16789 | -2/DSF | Entered Access 16789 | -1/Access | Evolved 2 slots: Propulsion x1, Utility x1 16869 | -1/Access | X0-1V1 released a cloud of subatomizers 16872 | -1/Access | X0-1V1 sent you to a vault 16932 | -1/Access | Found Prototype Device 16932 | -1/Access | Identified Exp. EM Shield 16939 | -1/Access | Found Prototype Device 16939 | -1/Access | Identified Exp. Phase Shifter 16953 | -1/Access | Found Prototype Launcher 16954 | -1/Access | Identified Containment Facilitator 17017 | -1/Access | Build established: Executioner 17039 | -1/Access | First assault squad dispatched 17395 | -1/Access | Weapon slot count temporarily expanded by X0-1V1 (+1) 17471 | -1/Access | X0-1V1 turns hostiles against one another 17573 | -1/Access | Garrison activated, responded to threat 17749 | -1/Access | High security lockdown imminent 17764 | -1/Access | Identified exit to Command 17764 | -1/Access | X0-1V1 revealed exit location to -1/Command 17779 | -1/Access | Build established: Scavenger-Executioner 17829 | -1/Access | High security lockdown engaged 17890 | -1/Access | Weapon slot count reverted to normal (-1) 17890 | -1/Access | Identified exit to Surface 17890 | -1/Access | X0-1V1 revealed exit location to -0/Surface 17910 | -1/Access | Found Prototype Device 17910 | -1/Access | Identified Exp. Focal Shield 18003 | -1/Access | Spotted Executioner 18010 | -1/Access | Destroyed Executioner 18107 | -1/Access | Destroyed 22 combat bots 18117 | -1/Access | Spotted Investigator 18119 | -1/Access | Scanned by Researcher 18123 | -1/Access | Energy Cycler disabled 18123 | -1/Access | Spotted Executioner 18123 | -1/Access | Spotted Striker 18123 | -1/Access | Spotted Striker 18125 | -1/Access | Destroyed Investigator 18129 | -1/Access | Garrison activated, responded to threat 18136 | -1/Access | Destroyed Striker 18136 | -1/Access | Destroyed Executioner 18137 | -1/Access | Destroyed Striker 18157 | -1/Access | System corruption reached 10% 18208 | -1/Access | Spotted Investigator 18208 | -1/Access | Spotted Striker 18209 | -1/Access | Destroyed 23 combat bots 18211 | -1/Access | Destroyed Investigator 18211 | -1/Access | Spotted Striker 18213 | -1/Access | Destroyed Striker 18241 | -1/Access | Destroyed Striker 18266 | -1/Access | Sterilization system engaged 18338 | -1/Access | Destroyed 17 combat bots 18396 | -1/Access | System corruption reached 30% 18482 | -1/Access | X0-1V1 sent allied Cetus Guard (x3) 18566 | -1/Access | Ambient heat levels rising (+10) 18640 | -1/Access | Destroyed 9 combat bots 18716 | -1/Access | Ambient heat levels rising (+10) 18755 | -1/Access | Spotted B-99 Colossus 18866 | -1/Access | Ambient heat levels rising (+10) 19016 | -1/Access | Ambient heat levels rising (+10) 19166 | -1/Access | Ambient heat levels rising (+10) 19316 | -1/Access | Ambient heat levels rising (+10) 19466 | -1/Access | Ambient heat levels rising (+10) 19468 | -1/Access | X0-1V1 sent hostile X-77 Beamer (x2) 19482 | -1/Access | Entered Command 19732 | -1/Command | First assault squad dispatched 19801 | -1/Command | Lost 3 parts (1p2w) 19817 | -1/Command | Destroyed 9 combat bots 19931 | -1/Command | X0-1V1 revealed exit location to -0/Surface 20002 | -1/Command | High security lockdown imminent 20041 | -1/Command | Destroyed 7 combat bots 20066 | -1/Command | X0-1V1 whisked you away to safety 20082 | -1/Command | High security lockdown engaged 20289 | -1/Command | Weapon slot count temporarily expanded by X0-1V1 (+1) 20294 | -1/Command | Destroyed 9 combat bots 20306 | -1/Command | Destroyed Investigator 20323 | -1/Command | Spotted Striker 20333 | -1/Command | Destroyed Striker 20357 | -1/Command | Lost 5 parts (1p2n1u1w) 20367 | -1/Command | Destroyed 29 combat bots 20543 | -1/Command | Destroyed 8 combat bots 20550 | -1/Command | Build established: Executioner 20643 | -1/Command | Spotted Executioner 20643 | -1/Command | Spotted Striker 20650 | -1/Command | Spotted Executioner 20651 | -1/Command | Spotted Executioner 20652 | -1/Command | Spotted Executioner 20652 | -1/Command | Spotted Striker 20666 | -1/Command | X0-1V1 sent allied Executioner (x2) 20670 | -1/Command | Destroyed 28 combat bots 20674 | -1/Command | Destroyed Striker 20681 | -1/Command | Weapon slot count reverted to normal (-1) 20689 | -1/Command | Destroyed Executioner 20689 | -1/Command | Allies destroyed Executioner 20694 | -1/Command | Destroyed Executioner 20698 | -1/Command | Allies destroyed Executioner 20704 | -1/Command | Destroyed Striker 20713 | -1/Command | Spotted B-99 Colossus 20713 | -1/Command | X0-1V1 whisked you away to safety 20717 | -1/Command | Lost 5 parts (2p3w) 20725 | -1/Command | Destroyed 10 combat bots 20873 | -1/Command | Found Hvy. Reactive Plating 20983 | -1/Command | Found Prototype Device 20983 | -1/Command | Identified Thermal Barrier 20990 | -1/Command | Spotted Investigator 20999 | -1/Command | Spotted Executioner 20999 | -1/Command | Spotted Striker 21000 | -1/Command | Weapon slot count temporarily expanded by X0-1V1 (+1) 21002 | -1/Command | Spotted Striker 21005 | -1/Command | Spotted Executioner 21015 | -1/Command | Crushed by falling debris 21016 | -1/Command | Crushed by falling debris 21054 | -1/Command | Spotted Executioner 21062 | -1/Command | Spotted Striker 21062 | -1/Command | Spotted Striker 21062 | -1/Command | Spotted Striker 21109 | -1/Command | X0-1V1 turns hostiles against one another 21157 | -1/Command | Core integrity fell below 50% 21207 | -1/Command | Spotted Executioner 21207 | -1/Command | Spotted Executioner 21207 | -1/Command | Spotted Executioner 21207 | -1/Command | Spotted Executioner 21207 | -1/Command | Spotted Striker 21207 | -1/Command | Spotted Striker 21207 | -1/Command | Spotted Alpha 7 21207 | -1/Command | Spotted Alpha 7 21208 | -1/Command | Spotted B-99 Colossus 21212 | -1/Command | Core integrity fell below 20% 21212 | -1/Command | Spotted B-99 Colossus 21223 | -1/Command | Destroyed by Executioner with Helical Railgun Last Messages --------------- 21219_ Field strength at 32. 21220_ Field strength at 25. 21220_ Penetrated by Slug. 21220_ Slug penetrates Wall. 21220_ Slug penetrates Striker. 21220_ Slug penetrates Executioner. 21220_ Penetrated by Slug. 21221_ Field strength at 18. 21221_ Dropped Hvy. Reactive Plating. 21222_ Field strength at 11. 21222_ Slug penetrates Executioner. 21222_ Slug penetrates Striker. 21222_ Slug penetrates Executioner. 21222_ Penetrated by Slug. 21222_ Slug penetrates Wall. 21222_ Slammed into Striker. 21222_ Striker knocked back. 21223_ X0-1V1: "Heat sink stocks are down. Don't ask me how I know." (+114 heat dissipation) 21223_ X0-1V1 giggles madly! Map ----- +----------------------------------------------------+ | ?????????????????? % * ! ==[ | | ???????????????????????####### == [=!!== | | ???????????????????# / ! == =*[[[ | | ???????????????????# # ! !=[" ! =!* | | ???????????????????# ?# =!!!# =! | | ???????????????????# ???# * ####### | | ???????????????????#####?????# [ !!!#?????? | | ?????????????????????????????# [%* !!!#?????? | | ?????????????????????????????# ===% !! #?????? | | ?????????????????????????????#[%[ !! #?????? | | ?????????????????????????##### !! #?????? | | ?????????????????????????+ !! #?????? | | ?????????????????????????#####+######## #?????? | | ??????????????????????????????????????## ##?????? | | ???????????????????????????????????????#! #??????? | | ???????????????????????????????????????# #??????? | | ?????????????????????????????????#####?# ######## | | ?????????????????????????????????# # #""""""" | | ?????????????????????????????????# # # """"T" | | ????????????????????????????Y??????? + | | ??????????????????????????????????????l# | | ???????????????????????????????????????# | | ??????????????????????????????????????x# i | | ???????????????????????????????????????#] | | ?????????????? ?????#########?????#p## | | ??????????? # K@;K#%###???# | | ??????????????????" BB EEKK% #####x ##+### | | ??????????????????" BB BBEE%^ ppp #????? | | ??????????????????"^ BBK77 / #????? | | ???????????????